bitfinex-derivatives/quotes_ETHF0:USTF0_20210111
["timestamp","ask_amount","ask_price","bid_price","bid_amount"]
[1610344847188,4.00959,1084.4,1084.3,1.7408]
[1610344848589,5.83489,1084.4,1084.3,1.7408]
[1610344850492,5.83489,1084.4,1083.5,4.0353]
[1610344851095,4.00959,1083.6,1083.5,4.0353]
[1610344851496,1.8253,1084.4,1083.5,4.0353]
[1610344852094,1.8253,1084.4,1083.5,3.5305]
[1610344852296,1.8253,1084.4,1083.5,2.1099]
[1610344852495,1.8253,1084.4,1083.2,1.8681]
[1610344852794,1.8253,1084.4,1083.2,1.3493]
[1610344853397,1.8253,1084.4,1083.2,3.6235]
[1610344853595,1.864,1085.2,1083.2,3.6235]
[1610344853796,1.8476,1085.5,1083.2,3.6235]
[1610344853996,1.8381,1085.6,1083.2,3.6235]
[1610344854896,57.203,1085.3,1083.2,3.6235]
[1610344855096,4.00959,1084.6,1084.4,4.00959]
[1610344855296,4.00959,1084.6,1083.8,1.834]
[1610344855498,4.00959,1084.6,1083.2,3.6235]
[1610344857098,4.00959,1083.3,1083.2,3.6235]
[1610344857298,1.8378,1084.5,1083.2,3.6235]
[1610344857498,1.8598,1085.2,1083.2,3.6235]
[1610344857700,59.0389,1085.3,1083.2,3.6235]
[1610344858099,59.0389,1085.3,1083.2,2.656]
[1610344858700,1.8359,1085.3,1083.2,2.656]
[1610344859199,4.00959,1083.5,1083.2,2.656]
[1610344859401,1.8699,1083.5,1083.2,2.656]
[1610344860204,9.21808356,1085.2,1083.2,2.656]
[1610344860400,7.34958356,1085.2,1083.2,2.656]
[1610344860601,1.8359,1085.3,1083.2,2.656]
[1610344861103,4.00959,1083.7,1083.6,4.00959]
[1610344861302,1.8711,1084.2,1083.6,5.85069]
[1610344861503,1.8471,1084.5,1083.6,4.00959]
[1610344861702,1.8373,1085.2,1083.2,2.656]
[1610344861903,1.8359,1085.3,1083.2,2.656]
[1610344863203,4.00959,1083.3,1083.2,2.656]
[1610344863404,1.8618,1083.5,1083.2,2.656]
[1610344863604,1.845,1084.2,1083.2,2.656]
[1610344863805,1.8461,1084.5,1083.2,2.656]
[1610344864007,9.44216424,1085.2,1083.2,2.656]
[1610344864206,7.61796424,1085.2,1083.2,2.656]
[1610344864607,1.8359,1085.3,1083.2,2.656]
[1610344865209,4.00959,1083.3,1083.2,2.656]
[1610344865410,3.6949,1083.5,1083.2,2.656]
[1610344865609,1.8655,1083.5,1083.2,2.656]
[1610344865809,1.8655,1083.5,1083.2,2.2742]
[1610344866010,1.8655,1083.5,1081.1,1.4128361]
[1610344867216,4.00959,1082.8,1081.1,1.4128361]
[1610344867413,4.00959,1082.8,1081.2,1.41282859]
[1610344867612,3.686,1083.5,1081.2,1.41282859]
[1610344867813,1.8655,1083.5,1081.2,5.61562859]
[1610344868616,1.8655,1083.5,1081.3,1.41295616]
[1610344868811,1.6257,1083.5,1081.3,1.41295616]
[1610344869016,1.8253,1084.5,1081.3,1.41295616]
[1610344869215,4.00959,1084.7,1084.4,4.00959]
[1610344869619,6.811,1085.5,1084.4,6.18919]
[1610344871223,6.811,1085.5,1085.4,4.00959]
[1610344871422,4.00959,1085.8,1084.4,2.1796]
[1610344873115,7.6139785,1085.7,1085.1,4.00959]
[1610344874417,7.61383972,1086.0,1084.4,2.1796]
[1610344874616,7.61383972,1086.0,1083.5,1.8672]
[1610344875016,7.61383972,1086.0,1083.5,2.3014]
[1610344875216,4.00959,1084.6,1084.3,4.00959]
[1610344875817,4.00959,1084.6,1083.5,2.3014]
[1610344877217,4.00959,1083.6,1083.5,2.3014]
[1610344877418,73.8477,1083.8,1083.5,2.3014]
[1610344878420,73.8477,1083.8,1082.2,72.1923]
[1610344878618,73.8477,1083.8,1083.5,2.1688]
[1610344879118,73.8477,1083.8,1083.5,1.6148]
[1610344879318,4.00959,1083.6,1083.5,1.2455]
[1610344879520,4.00959,1083.6,1082.2,72.1923]
[1610344880419,73.8477,1083.8,1082.2,72.1923]
[1610344880619,73.8477,1083.8,1082.2,73.7296]
[1610344880620,9.0,1083.6,1082.2,73.7296]
[1610344880819,73.8477,1083.8,1081.2,2.3385]
[1610344881019,56.8766,1082.7,1081.2,1.7431]
[1610344881220,12.75659,1082.7,1082.0,4.00959]
[1610344881420,12.75659,1082.7,1081.2,1.7431]
[1610344881620,0.36209,1082.7,1081.2,1.7431]
[1610344882221,1.8496,1082.7,1081.2,1.7431]
[1610344883221,1.835,1083.2,1082.5,4.00959]
[1610344883421,62.6145,1082.7,1082.5,5.69299]
[1610344883623,1.8425,1083.5,1082.5,5.69299]
[1610344883823,1.8362,1083.8,1082.5,5.69299]
[1610344884624,2.3653,1085.8,1082.5,5.69299]
[1610344884823,53.8038,1084.0,1082.5,5.69299]
[1610344885224,53.8038,1084.0,1083.9,4.00959]
[1610344885423,53.8038,1084.0,1082.5,1.6834]
[1610344885623,55.6554,1084.0,1082.5,1.6834]
[1610344886222,53.8038,1084.0,1082.5,1.6834]
[1610344886723,3.405,1084.3,1082.5,1.6834]
[1610344887224,3.405,1084.3,1084.2,4.00959]
[1610344887723,1.839,1084.5,1084.2,4.00959]
[1610344887923,72.2941,1084.7,1084.2,4.00959]
[1610344888123,72.2941,1084.7,1082.5,1.6834]
[1610344888325,75.6991,1084.7,1083.8,2.2296]
[1610344888523,3.405,1084.7,1083.8,2.2296]
[1610344889525,5.8998,1084.7,1083.8,2.2296]
[1610344890326,2.4948,1084.7,1083.8,2.2296]
[1610344891326,4.00959,1084.2,1083.8,2.2296]
[1610344891526,1.8523,1084.2,1083.8,2.2296]
[1610344891726,10.6667,1085.0,1083.8,2.2296]
[1610344893126,10.6667,1085.0,1083.7,3.95109]
[1610344893326,4.00959,1084.3,1083.7,5.80149]
[1610344893527,5.87559,1084.3,1081.6,3.27011777]
[1610344893727,9.28059,1084.3,1081.5,1.41279872]
[1610344894128,18.28059,1084.3,1081.2,3.1563991]
[1610344894528,18.28059,1084.3,1081.2,1.7431]
[1610344894529,30.0,1084.2,1081.2,1.7431]
[1610344894730,18.28059,1084.3,1080.6,0.99688051]
[1610344894932,9.0,1084.2,1080.6,2.76678051]
[1610344895331,8.19203781,1084.2,1081.8,4.00959]
[1610344895531,8.19203781,1084.2,1081.8,6.14379]
[1610344896538,8.19203781,1084.2,1081.8,8.01739]
[1610344896736,8.19203781,1084.2,1081.8,6.14379]
[1610344897336,4.00959,1083.5,1083.2,4.00959]
[1610344897537,4.00959,1083.5,1081.8,2.1342]
[1610344897538,5.86069,1083.5,1081.8,2.1342]
[1610344897937,4.00959,1083.5,1081.8,2.1342]
[1610344899737,4.00959,1083.5,1081.9,1.41319902]
[1610344900537,1.8642,1084.2,1081.9,1.41319902]
[1610344900738,5.271,1084.3,1081.9,1.41319902]
[1610344901138,3.405,1084.3,1081.9,1.41319902]
[1610344901339,7.41459,1084.3,1083.8,4.00959]
[1610344901540,7.41459,1084.3,1083.8,5.96029]
[1610344901942,3.405,1084.3,1083.8,5.96029]
[1610344903343,3.405,1084.3,1084.2,4.00959]
[1610344903542,4.00959,1084.8,1084.2,5.83409]
[1610344904945,4.00959,1084.8,1084.2,1.8245]
[1610344905148,4.00959,1084.8,1084.2,1.7322]
[1610344905349,4.00959,1084.3,1083.7,4.00959]
[1610344905546,5.83869,1084.3,1084.2,1.543]
[1610344905747,5.83869,1084.3,1084.2,1.1848]
[1610344905947,5.83869,1084.3,1084.1,2.4989]
[1610344906347,5.83869,1084.3,1084.1,0.1306]
[1610344906547,5.83869,1084.3,1081.0,6.1814]
[1610344906748,9.24369,1084.3,1081.0,6.1814]
[1610344907348,5.2341,1084.3,1082.7,4.00959]
[1610344907547,5.2341,1084.3,1082.7,6.12709]
[1610344907750,14.2341,1084.3,1082.7,2.1175]
[1610344908349,5.2341,1084.3,1082.7,2.1175]
[1610344909350,8.19239819,1084.2,1082.7,2.1175]
[1610344909549,8.19239819,1084.2,1080.6,0.99688051]
[1610344909951,47.19239819,1084.2,1080.6,0.99688051]
[1610344910250,17.19239819,1084.2,1080.6,0.99688051]
[1610344910649,8.19239819,1084.2,1080.6,0.99688051]
[1610344911050,8.19318192,1084.1,1080.7,1.41417404]
[1610344911250,4.00959,1082.5,1082.2,4.00959]
[1610344911850,1.8378,1083.2,1082.2,4.00959]
[1610344912051,1.8707,1083.5,1082.2,4.00959]
[1610344912252,1.8475,1083.8,1082.2,4.00959]
[1610344913254,4.00959,1082.5,1082.4,4.00959]
[1610344913454,1.8534,1082.7,1082.4,4.00959]
[1610344913656,1.8255,1083.2,1082.4,4.00959]
[1610344913856,1.8313,1083.5,1082.4,4.00959]
[1610344914056,8.19328879,1083.7,1082.4,4.00959]
[1610344914257,8.19328879,1083.7,1080.6,0.99688051]
[1610344914856,70.3928,1083.0,1080.6,0.99688051]
[1610344915057,72.2529,1083.0,1080.6,0.99688051]
[1610344915257,72.2529,1083.0,1081.6,4.00959]
[1610344915258,4.00959,1081.7,1081.6,4.00959]
[1610344915458,4.00959,1081.7,1080.7,1.41485669]
[1610344916463,1.8753,1082.5,1080.7,1.41485669]
[1610344916662,1.8257,1082.8,1080.7,1.41485669]
[1610344916862,1.8257,1082.8,1080.6,0.99688051]
[1610344917262,4.00959,1082.0,1081.5,4.00959]
[1610344917464,5.88119,1082.0,1081.5,4.00959]
[1610344917662,4.00959,1082.0,1081.5,4.00959]
[1610344918763,1.8257,1082.8,1081.5,4.00959]
[1610344919364,4.00959,1082.6,1080.6,0.99688051]
[1610344919564,70.3928,1083.0,1080.6,30.99688051]
[1610344919964,70.3928,1083.0,1080.6,39.99688051]
[1610344920766,70.3928,1083.0,1080.6,41.82008051]
[1610344920968,70.3928,1083.0,1080.7,1.41339713]
[1610344921368,70.3928,1083.0,1082.9,4.00959]
[1610344921767,63.3562,1083.9,1082.9,4.00959]
[1610344921967,10.185,1084.9,1082.9,4.00959]
[1610344922167,6.811,1085.3,1082.9,34.00959]
[1610344922368,18.8503,1086.7,1082.9,34.00959]
[1610344922570,1.8498,1085.3,1082.9,43.00959]
[1610344922769,3.405,1085.3,1082.9,43.00959]
[1610344922970,22.2553,1086.7,1082.9,43.00959]
[1610344923169,20.401,1086.7,1082.9,44.85439]
[1610344923370,4.00959,1086.3,1086.2,4.00959]
[1610344923571,16.996,1086.7,1086.2,4.00959]
[1610344923774,6.811,1086.7,1086.2,4.00959]
[1610344923975,8.38649513,1086.6,1086.2,4.00959]
[1610344924770,8.38649513,1086.6,1083.1,30.0]
[1610344924969,10.21899513,1086.6,1083.1,39.0]
[1610344925169,10.21899513,1086.6,1083.3,30.0]
[1610344925369,8.38649513,1086.6,1083.3,30.0]
[1610344925668,8.38649513,1086.6,1083.3,39.0]
[1610344925871,8.38649513,1086.6,1083.3,40.858]
[1610344926272,8.38649513,1086.6,1083.3,10.858]
[1610344926473,12.0466,1086.7,1083.3,40.858]
[1610344926671,10.216,1086.7,1083.3,40.858]
[1610344926872,10.216,1086.7,1084.8,75.4283]
[1610344927474,10.216,1086.7,1086.6,4.00959]
[1610344928273,10.216,1086.7,1084.8,75.4283]
[1610344928674,10.216,1086.7,1083.5,1.8591]
[1610344928875,10.216,1086.7,1083.3,1.858]
[1610344929075,10.216,1086.7,1083.2,1.41063332]
[1610344929477,4.00959,1085.7,1083.0,1.41116274]
[1610344929678,4.00959,1085.7,1082.8,1.41132335]
[1610344930077,4.00959,1085.7,1082.7,1.41148696]
[1610344930477,4.00959,1085.7,1082.6,1.41162242]
[1610344930677,4.00959,1085.7,1082.7,9.0]
[1610344931379,1.8192,1086.0,1084.8,4.00959]
[1610344932182,0.6,1086.4,1084.8,4.00959]
[1610344933385,4.00959,1085.9,1085.5,4.00959]
[1610344934683,1.8577,1086.1,1085.5,4.00959]
[1610344934883,0.6,1086.4,1085.5,4.00959]
[1610344935384,4.00959,1086.3,1085.9,4.00959]
[1610344935985,4.00959,1086.3,1084.0,59.5227]
[1610344936589,4.00959,1086.3,1082.5,1.41186351]
[1610344936786,4.00959,1086.3,1082.3,1.41210022]
[1610344936989,4.00959,1086.3,1082.5,9.0]
[1610344937388,0.6,1086.4,1084.9,4.00959]
[1610344937589,0.6,1086.4,1082.2,9.0]
[1610344937788,38.36939907,1086.2,1082.0,1.41253843]
[1610344938188,47.36939907,1086.2,1081.6,1.41308836]
[1610344938588,47.36939907,1086.2,1081.3,1.41334393]
[1610344938788,47.36939907,1086.2,1081.0,1.4135472]
[1610344939190,30.0,1086.0,1081.7,1.41309112]
[1610344939388,4.00959,1082.9,1082.8,4.00959]
[1610344939592,1.8231,1085.8,1082.8,4.00959]
[1610344939789,30.0,1085.7,1082.8,4.00959]
[1610344940189,30.0,1085.7,1081.7,1.41309112]
[1610344940190,1.13279,1085.4,1081.7,1.41309112]
[1610344940389,11.34879,1085.4,1081.7,1.41309112]
[1610344940590,30.0,1085.3,1081.7,9.112e-05]
[1610344940790,30.0,1085.3,1080.6,0.99688051]
[1610344940991,39.0,1085.3,1080.6,0.99688051]
[1610344941390,4.00959,1082.4,1082.2,4.00959]
[1610344941591,4.00959,1082.4,1080.6,0.99688051]
[1610344942591,5.84689,1082.4,1080.6,0.99688051]
[1610344943392,1.8373,1082.4,1081.9,4.00959]
[1610344943792,1.8373,1082.4,1080.6,2.59988051]
[1610344944193,1.8373,1082.4,1080.6,0.31128051]
[1610344944194,3.6414,1082.4,1080.6,0.31128051]
[1610344944797,67.8375,1082.1,1080.6,0.31128051]
[1610344944996,69.345,1082.1,1079.3,58.5137]
[1610344945398,4.00959,1080.7,1080.6,4.00959]
[1610344945598,69.345,1082.1,1080.6,4.00959]
[1610344945996,71.2033,1082.1,1080.6,4.00959]
[1610344947201,80.2033,1082.1,1080.6,0.76499]
[1610344947400,4.00959,1080.7,1080.6,0.76499]
[1610344947599,5.85519,1080.7,1080.3,2.1984]
[1610344947999,4.00959,1080.7,1080.3,2.1984]
[1610344948199,1.8677,1081.5,1080.3,2.1984]
[1610344948399,1.8685,1081.8,1080.3,2.1984]
[1610344949000,71.2033,1082.1,1080.3,2.1984]
[1610344949200,67.8375,1082.1,1080.3,2.1984]
[1610344949401,4.00959,1082.0,1081.6,4.00959]
[1610344949800,67.8375,1082.1,1081.6,4.00959]
[1610344951603,67.8375,1082.1,1082.0,4.00959]
[1610344952500,1.8325,1082.8,1082.0,4.00959]
[1610344952701,66.6393,1082.9,1082.0,3.88929]
[1610344953300,66.6393,1082.9,1081.3,1.7663]
[1610344953501,4.00959,1082.0,1081.7,4.00959]
[1610344953702,4.00959,1082.0,1081.0,2.2444]
[1610344954102,4.00959,1082.0,1081.0,0.8992]
[1610344954303,4.00959,1082.0,1081.0,0.3902]
[1610344954503,4.00959,1082.0,1080.4,67.9693]
[1610344955604,4.00959,1081.0,1080.8,0.77879]
[1610344956004,4.00959,1081.0,1080.4,67.9693]
[1610344956204,4.00959,1081.0,1078.6,1.7001236]
[1610344956404,4.00959,1081.0,1078.4,1.70052656]
[1610344956808,4.00959,1081.0,1078.2,2.26736875]
[1610344956809,4.00959,1081.0,1078.1,1.70090674]
[1610344957204,4.00959,1081.0,1078.5,1.41734513]
[1610344957604,1.8742,1081.2,1078.5,1.41734513]
[1610344957605,4.00959,1079.8,1079.7,4.00959]
[1610344957804,4.00959,1079.8,1078.5,3.73984513]
[1610344958604,1.8742,1081.2,1078.5,2.3225]
[1610344958805,1.6417,1081.4,1078.5,2.3225]
[1610344959204,4.1461,1081.8,1078.5,2.3225]
[1610344959605,4.00959,1081.1,1080.8,4.00959]
[1610344959805,1.8259,1081.5,1080.8,4.00959]
[1610344960006,4.1461,1081.8,1080.8,4.00959]
[1610344960204,8.98216212,1081.7,1080.8,4.00959]
[1610344961605,4.00959,1081.5,1080.2,1.7472]
[1610344961806,12.11429,1081.5,1079.4,59.0311]
[1610344962407,54.2454,1081.1,1078.5,2.3225]
[1610344962805,54.2454,1081.1,1078.1,67.7608]
[1610344963606,54.2454,1081.1,1079.6,4.00959]
[1610344963805,54.2454,1081.1,1079.6,5.51079]
[1610344964205,54.2454,1081.1,1079.6,1.5012]
[1610344964507,8.98399183,1081.0,1079.6,1.5012]
[1610344965306,8.98399183,1081.0,1079.6,0.6425]
[1610344965507,4.00959,1079.7,1079.6,0.6425]
[1610344966310,4.00959,1079.7,1078.1,67.7608]
[1610344966509,1.8695,1080.2,1078.1,69.6558]
[1610344966709,1.8719,1080.5,1078.1,78.6558]
[1610344966909,1.8706,1080.8,1078.1,108.6558]
[1610344967109,1.845,1081.5,1078.1,108.6558]
[1610344967310,3.405,1083.1,1078.1,108.6558]
[1610344967511,4.00959,1081.8,1080.9,4.00959]
[1610344968110,4.00959,1081.8,1078.1,3.59587023]
[1610344968310,4.00959,1081.8,1078.1,1.895]
[1610344968510,5.87469,1081.8,1078.1,1.895]
[1610344968910,8.24019,1081.8,1078.1,1.895]
[1610344969210,8.24019,1081.8,1078.2,1.41719339]
[1610344969211,8.98178557,1081.7,1078.2,1.41719339]
[1610344969612,4.00959,1080.1,1078.2,1.41719339]
[1610344969812,5.84469,1080.1,1078.2,1.41719339]
[1610344970412,5.84469,1080.1,1078.1,1.895]
[1610344971212,5.84469,1080.1,1079.4,59.3647]
[1610344971414,5.84469,1080.1,1078.1,1.895]
[1610344971612,1.8351,1080.1,1079.5,4.00959]
[1610344971812,1.874,1080.5,1079.5,4.00959]
[1610344972015,1.8416,1080.8,1079.5,4.00959]
[1610344972413,1.6196,1082.4,1079.5,4.00959]
[1610344972615,1.8651,1081.8,1079.5,4.00959]
[1610344973413,8.9815811,1081.4,1079.5,4.00959]
[1610344973613,8.9815811,1081.4,1081.3,4.00959]
[1610344974013,8.11e-05,1081.4,1081.3,4.00959]
[1610344974813,1.8322,1083.2,1081.3,4.00959]
[1610344974814,5.32019386,1082.7,1081.3,4.00959]
[1610344975015,5.32019386,1082.7,1081.3,13.00959]
[1610344975215,5.32019386,1082.7,1081.3,43.00959]
[1610344975614,5.32019386,1082.7,1082.6,4.00959]
[1610344976015,1.8306,1083.4,1082.6,4.00959]
[1610344976216,1.8247,1083.7,1082.6,4.00959]
[1610344976815,1.8247,1083.7,1081.6,1.8359]
[1610344977015,3.7615,1083.7,1081.6,1.8359]
[1610344977416,5.31816995,1083.6,1081.6,1.8359]
[1610344977615,4.00959,1082.6,1082.2,4.00959]
[1610344977815,4.00959,1082.6,1081.6,1.8359]
[1610344978017,4.00959,1082.6,1081.1,1.6161]
[1610344978616,4.00959,1082.6,1079.4,2.1663]
[1610344979016,10.82059,1082.6,1078.9,1.69990352]
[1610344979416,10.82059,1082.6,1078.4,1.7003445]
[1610344979617,1.7471,1081.6,1080.7,4.00959]
[1610344980216,1.7471,1081.6,1079.7,2.2884]
[1610344980415,5.1521,1081.6,1079.7,2.2884]
[1610344981418,5.1521,1081.6,1079.7,13.1344]
[1610344981618,5.1521,1081.6,1081.5,4.00959]
[1610344982619,1.7471,1081.6,1081.5,4.00959]
[1610344982818,2.2279,1082.0,1081.5,4.00959]
[1610344983420,1.8247,1083.7,1081.5,4.00959]
[1610344983619,1.8685,1085.0,1082.7,4.00959]
[1610344984021,1.8619,1084.2,1082.7,4.00959]
[1610344984220,1.8685,1085.0,1082.7,4.00959]
[1610344984623,1.8531,1083.7,1082.7,4.00959]
[1610344985323,64.4762,1082.8,1082.7,4.00959]
[1610344985521,64.4762,1082.8,1081.9,2.3133]
[1610344985522,64.4762,1082.8,1082.5,4.00959]
[1610344985725,62.6099,1082.8,1082.5,3.40749]
[1610344985923,62.6099,1082.8,1081.9,2.3133]
[1610344986524,62.6099,1082.8,1081.6,1.581]
[1610344986725,64.4602,1082.8,1081.6,1.581]
[1610344986922,62.6099,1082.8,1081.6,1.581]
[1610344987324,62.6099,1082.8,1081.6,10.581]
[1610344987525,62.6099,1082.8,1081.7,30.0]
[1610344987727,62.6099,1082.8,1082.7,4.00959]
[1610344989830,62.6099,1082.8,1081.6,1.581]
[1610344990030,4.00959,1082.9,1081.1,69.3979]
[1610344990229,4.00959,1082.9,1079.6,1.69937975]
[1610344990430,4.00959,1082.9,1080.8,2.3948]
[1610344991631,4.00959,1081.4,1081.1,4.00959]
[1610344991832,4.00959,1081.4,1081.1,2.17079]
[1610344992231,6.29539,1081.4,1078.8,3.55844321]
[1610344992432,6.29539,1081.4,1078.7,7.75288522]
[1610344992833,8.15249,1081.4,1078.5,1.70107052]
[1610344993133,8.15249,1081.4,1078.2,9.68228]
[1610344993335,8.15249,1081.4,1078.8,1.41717296]
[1610344993533,8.15249,1081.4,1078.8,2.92937296]
[1610344993733,4.00959,1079.7,1078.8,2.92937296]
[1610344994133,2.2887,1081.1,1078.8,2.92937296]
[1610344994732,2.2887,1081.1,1078.8,1.5122]
[1610344996934,4.1429,1081.4,1078.8,1.5122]
[1610344997335,1.8571,1081.4,1078.8,1.5122]
[1610344997734,1.8571,1081.4,1080.3,2.3597]
[1610344998135,1.8571,1081.4,1080.3,0.3508]
[1610344998335,1.8571,1081.4,1078.8,1.5122]
[1610344998536,1.8571,1081.4,1078.2,1.8725]
[1610344999336,1.8571,1081.4,1078.0,10.00719307]
[1610344999536,1.8571,1081.4,1078.0,1.00719307]
[1610344999738,1.8571,1081.4,1079.5,6.20279]
[1610344999939,1.8571,1081.4,1079.5,2.1932]
[1610345001742,1.8571,1081.4,1079.6,4.00959]
[1610345001944,1.8571,1081.4,1079.5,2.1932]
[1610345003744,1.8571,1081.4,1080.8,4.00959]
[1610345005543,1.8571,1081.4,1080.8,2.37969]
[1610345005743,1.8571,1081.4,1080.1,1.7398]
[1610345006646,1.8571,1081.4,1078.2,1.8277]
[1610345007049,1.8571,1081.4,1079.0,9.0]
[1610345007249,1.8571,1081.4,1079.0,11.3215]
[1610345007648,4.00959,1081.2,1080.8,4.00959]
[1610345007847,1.8571,1081.4,1080.8,4.00959]
[1610345008648,2.414,1081.7,1080.8,4.00959]
[1610345008851,2.414,1081.7,1080.8,5.83219]
[1610345009249,1.8268,1081.8,1080.8,5.83219]
[1610345009649,1.8268,1081.8,1081.4,4.00959]
[1610345009849,1.8268,1081.8,1080.2,4.1991]
[1610345010050,1.8268,1081.8,1080.0,52.6958]
[1610345010051,3.4811,1081.8,1080.0,52.6958]
[1610345011651,4.00959,1080.7,1080.5,4.00959]
[1610345011851,5.84159,1080.7,1079.8,2.4302]
[1610345013250,5.84159,1080.7,1079.0,63.4424]
[1610345013651,4.00959,1080.1,1079.8,4.00959]
[1610345013852,5.83819,1080.1,1079.8,4.00959]
[1610345015153,5.83819,1080.1,1079.0,63.4424]
[1610345015755,4.00959,1079.9,1079.6,4.00959]
[1610345016155,1.8286,1080.1,1079.6,4.00959]
[1610345016356,1.8751,1080.5,1079.6,4.00959]
[1610345016557,1.832,1080.7,1079.6,4.00959]
[1610345016956,6.811,1082.9,1079.6,4.00959]
[1610345017757,5.87129,1082.2,1081.7,4.00959]
[1610345017958,1.8617,1082.2,1081.7,4.00959]
[1610345018258,1.8268,1081.8,1081.7,4.00959]
[1610345019258,1.8268,1081.8,1080.8,2.2534]
[1610345019661,1.8268,1081.8,1080.9,4.00959]
[1610345019662,4.00959,1081.1,1080.9,4.00959]
[1610345020059,4.00959,1081.1,1078.7,1.70121662]
[1610345020259,4.00959,1081.1,1078.6,30.0]
[1610345020260,1.8268,1081.8,1078.9,1.8813]
[1610345020459,1.8268,1081.8,1079.6,9.0]
[1610345020660,1.8268,1081.8,1079.6,39.0]
[1610345020859,1.8268,1081.8,1079.7,9.0]
[1610345021060,1.8268,1081.8,1079.8,30.0]
[1610345021460,1.8268,1081.8,1079.8,39.0]
[1610345021660,1.8268,1081.8,1081.7,4.00959]
[1610345022262,1.8268,1081.8,1080.4,1.7952]
[1610345023160,1.8268,1081.8,1079.7,1.939]
[1610345023762,4.00959,1080.8,1079.7,1.939]
[1610345023962,5.84349,1080.8,1079.7,1.939]
[1610345025766,4.00959,1080.2,1080.0,4.00959]
[1610345025965,5.87719,1080.2,1080.0,4.00959]
[1610345026166,4.00959,1080.2,1080.0,4.00959]
[1610345026566,4.00959,1080.2,1079.7,1.939]
[1610345026967,4.00959,1080.2,1078.0,1.00719307]
[1610345027568,61.8815,1080.1,1079.3,64.0861]
[1610345027768,4.00959,1079.5,1079.4,4.00959]
[1610345028169,5.88229,1079.5,1079.3,64.0861]
[1610345028368,4.00959,1079.5,1079.3,64.0861]
[1610345028569,5.78799,1079.5,1078.0,1.00719307]
[1610345029770,14.78799,1079.5,1078.0,1.00719307]
[1610345029969,14.78799,1079.5,1076.2,1.70492591]
[1610345029970,4.00959,1078.1,1076.2,1.70492591]
[1610345030170,4.00959,1078.1,1075.8,1.7053156]
[1610345030570,4.00959,1078.1,1075.6,1.70556381]
[1610345030970,4.00959,1078.1,1075.4,3.29159072]
[1610345030971,4.00959,1078.1,1075.4,2.72310727]
[1610345031171,5.86129,1078.1,1075.5,1.70562412]
[1610345031371,5.86129,1078.1,1075.5,4.07322412]
[1610345031571,5.86129,1078.1,1075.7,1.42096448]
[1610345031771,4.00959,1076.8,1076.5,4.00959]
[1610345031973,4.00959,1076.8,1075.7,1.42096448]
[1610345032571,4.00959,1076.8,1074.9,1.70645036]
[1610345032771,4.00959,1076.8,1074.7,2.27526715]
[1610345032772,4.00959,1076.8,1074.7,1.70661901]
[1610345032971,5.89429,1076.8,1074.7,1.70661901]
[1610345033171,5.89429,1076.8,1074.4,1.70685704]
[1610345033372,5.89429,1076.8,1074.0,2.27661453]
[1610345033772,5.89429,1076.8,1073.8,2.27683123]
[1610345033973,1.8847,1076.8,1075.3,4.00959]
[1610345034173,1.8847,1076.8,1075.2,58.4857]
[1610345034774,1.8847,1076.8,1074.9,1.7086]
[1610345034973,1.5247,1076.5,1074.9,1.7086]
[1610345035777,1.8847,1076.8,1074.9,10.7086]
[1610345035975,1.9704,1076.9,1076.4,4.00959]
[1610345036174,1.6785,1077.3,1076.4,4.00959]
[1610345036775,6.0199,1082.5,1076.4,4.00959]
[1610345037176,1.8789,1077.8,1076.4,13.00959]
[1610345037376,1.8345,1078.1,1076.4,14.50579]
[1610345037575,6.0199,1082.5,1076.4,14.50579]
[1610345037778,0.95829,1081.7,1076.4,5.50579]
[1610345037977,4.00959,1078.6,1076.4,1.4962]
[1610345038177,4.00959,1078.6,1076.8,1.963]
[1610345038377,1.8467,1078.5,1076.8,1.963]
[1610345039379,1.8467,1078.5,1076.4,1.4962]
[1610345039680,9.4581,1078.4,1075.8,70.3618]
[1610345039878,1.8467,1078.5,1075.7,3.5095]
[1610345040078,1.8467,1078.5,1075.7,1.6536]
[1610345040478,1.8467,1078.5,1075.4,1.7035148]
[1610345040678,10.8467,1078.5,1075.4,1.7035148]
[1610345040878,10.8467,1078.5,1074.9,1.70668983]
[1610345041278,1.8467,1078.5,1074.8,1.70697893]
[1610345041478,10.8467,1078.5,1074.8,1.70697893]
[1610345041679,10.8467,1078.5,1075.0,1.42226373]
[1610345041880,4.00959,1075.9,1075.0,3.84306373]
[1610345042281,4.00959,1075.9,1075.0,3.65836373]
[1610345042681,4.00959,1075.9,1075.0,6.373e-05]
[1610345042880,4.00959,1075.9,1074.1,1.70797972]
[1610345043280,4.00959,1075.9,1074.0,1.70808175]
[1610345043481,1.8821,1076.1,1074.0,1.70808175]
[1610345043682,1.8821,1076.1,1074.0,3.60938175]
[1610345043885,4.00959,1075.9,1075.0,4.00959]
[1610345045986,4.00959,1075.5,1075.4,4.00959]
[1610345046186,4.00959,1075.5,1074.0,1.9013]
[1610345046688,1.8821,1076.1,1074.0,1.9013]
[1610345046889,1.8821,1076.1,1074.1,1.42339997]
[1610345047889,1.8821,1076.1,1075.6,4.00959]
[1610345048091,1.8821,1076.1,1074.9,2.3645]
[1610345048892,53.7,1076.2,1074.9,2.3645]
[1610345049892,1.5223,1076.8,1074.9,2.3645]
[1610345049893,76.0384,1077.0,1076.1,4.00959]
[1610345050096,1.8396,1077.8,1076.1,4.00959]
[1610345051995,4.00959,1077.4,1075.8,2.1049]
[1610345053897,3.3569,1077.5,1076.3,4.00959]